Workbook

Sheet Bandits
A1: 2016 RED WHITE and BLUE SERIES - CHAMPIONSHIP STANDINGS
A2: 2016-06-14
A3: (After Round 8 of 8 - August 2, 2016) | H3: Weekly Finishes | Q3: Weekly Points
A4: BANDITS | D4: Races | E4: Total | F4: Points | G4: Average | H4: 2016-06-15 | I4: 2016-06-16 | J4: 2016-06-20 | K4: 2016-06-21 | L4: 2016-07-06 | M4: 2016-07-07 | N4: 2016-08-01 | O4: 2016-08-02 | P4: 2015-07-27 | Q4: 2016-06-15 | R4: 2016-06-16 | S4: 2016-06-20 | T4: 2016-06-21 | U4: 2016-07-06 | V4: 2016-07-07 | W4: 2016-08-01 | X4: 2016-08-02
A5: Pos. | B5: Car # | C5: Driver | D5: Entered | E5: Points | F5: Back | G5: Finish
A6: 1 | B6: 24 | C6: Bryson Ruff | D6: =COUNTA(H6:O6) -> 6 | E6: =SUM(Q6:X6) -> 269 | F6: =E6-$E$6 -> 0 | G6: =AVERAGEA(H6:O6) -> 3.5 | J6: 1 | K6: 9 | L6: 5 | M6: 3 | N6: 2 | O6: 1 | Q6: 0 | R6: 0 | S6: 50 | T6: 38 | U6: 42 | V6: 44 | W6: 45 | X6: 50
A7: 2 | B7: 54 | C7: Josh Speas | D7: =COUNTA(H7:O7) -> 6 | E7: =SUM(Q7:X7) -> 257 | F7: =E7-$E$6 -> -12 | G7: =AVERAGEA(H7:O7) -> 4.833333333 | J7: 6 | K7: 1 | L7: 6 | M7: 4 | N7: 6 | O7: 6 | Q7: 0 | R7: 0 | S7: 41 | T7: 50 | U7: 41 | V7: 43 | W7: 41 | X7: 41
A8: 3 | B8: 44 | C8: Josh Kossek | D8: =COUNTA(H8:O8) -> 6 | E8: =SUM(Q8:X8) -> 256 | F8: =E8-$E$6 -> -13 | G8: =AVERAGEA(H8:O8) -> 4.333333333 | J8: 2 | K8: 8 | L8: 2 | M8: 9 | N8: 3 | O8: 2 | Q8: 0 | R8: 0 | S8: 45 | T8: 39 | U8: 45 | V8: 38 | W8: 44 | X8: 45
A9: 4 | B9: 4H | C9: Holt Halder | D9: =COUNTA(H9:O9) -> 8 | E9: =SUM(Q9:X9) -> 247 | F9: =E9-$E$6 -> -22 | G9: =AVERAGEA(H9:O9) -> 6.875 | H9: 7 | I9: 5 | J9: 10 | K9: 2 | L9: 7 | M9: 6 | N9: 8 | O9: 10 | Q9: 40 | R9: 42 | S9: 0 | T9: 45 | U9: 40 | V9: 41 | W9: 39 | X9: 0
A10: 5 | B10: 80 | C10: Kenneth Henderson | D10: =COUNTA(H10:O10) -> 6 | E10: =SUM(Q10:X10) -> 239 | F10: =E10-$E$6 -> -30 | G10: =AVERAGEA(H10:O10) -> 7.166666667 | H10: 4 | I10: 4 | L10: 9 | M10: 11 | N10: 7 | O10: 8 | Q10: 43 | R10: 43 | S10: 0 | T10: 0 | U10: 38 | V10: 36 | W10: 40 | X10: 39
H12: =COUNTA(H6:H11) -> 2 | I12: 2 | J12: 4 | K12: 4 | L12: 5 | M12: 5 | N12: 5 | O12: 5
A13: Total Events | D13: 4
A14: Track Point Races | D14: 4
A15: Avg. Entries | D15: =SUM(H12:O12)/4 -> 8

Sheet Outlaws
A1: 2016 RED WHITE and BLUE SERIES - CHAMPIONSHIP STANDINGS
A3: (After Round 8 of 8 - August 2, 2016) | H3: Weekly Finishes | Q3: Weekly Points
A4: OUTLAWS | D4: Races | E4: Total | F4: Points | G4: Average | H4: 2016-06-15 | I4: 2016-06-16 | J4: 2016-06-20 | K4: 2016-06-21 | L4: 2016-07-06 | M4: 2016-07-07 | N4: 2016-08-01 | O4: 2016-08-02 | P4: 00:00:00 | Q4: 2016-06-15 | R4: 2016-06-16 | S4: 2016-06-20 | T4: 2016-06-21 | U4: 2016-07-06 | V4: 2016-07-07 | W4: 2016-08-01 | X4: 2016-08-02
A5: Pos. | B5: Car # | C5: Driver | D5: Entered | E5: Points | F5: Back | G5: Finish
A6: 1 | B6: 29 | C6: D J Canipe | D6: =COUNTA(H6:O6) -> 8 | E6: =SUM(Q6:X6) -> 288 | F6: =E6-$E$6 -> 0 | G6: =AVERAGEA(H6:O6) -> 4.125 | H6: 1 | I6: 1 | J6: 2 | K6: 4 | L6: 1 | M6: 1 | N6: 4 | O6: 19 | Q6: 50 | R6: 50 | S6: 45 | T6: 0 | U6: 50 | V6: 50 | W6: 43 | X6: 0
A7: =A6+1 -> 2 | B7: 47 | C7: Blaise Maddox | D7: =COUNTA(H7:O7) -> 8 | E7: =SUM(Q7:X7) -> 249 | F7: =E7-$E$6 -> -39 | G7: =AVERAGEA(H7:O7) -> 7.875 | H7: 3 | I7: 9 | J7: 13 | K7: 2 | L7: 4 | M7: 7 | N7: 17 | O7: 8 | Q7: 44 | R7: 38 | S7: 0 | T7: 45 | U7: 43 | V7: 40 | W7: 0 | X7: 39
A8: 3 | B8: 30 | C8: Trey Tadrzak | D8: =COUNTA(H8:O8) -> 6 | E8: =SUM(Q8:X8) -> 238 | F8: =E8-$E$6 -> -50 | G8: =AVERAGEA(H8:O8) -> 7.333333333 | H8: 7 | I8: 6 | L8: 6 | M8: 4 | N8: 8 | O8: 13 | Q8: 40 | R8: 41 | S8: 0 | T8: 0 | U8: 41 | V8: 43 | W8: 39 | X8: 34
A9: 4 | B9: 3 | C9: Gauntt Hudgins | D9: =COUNTA(H9:O9) -> 6 | E9: =SUM(Q9:X9) -> 227 | F9: =E9-$E$6 -> -61 | G9: =AVERAGEA(H9:O9) -> 9.166666667 | H9: 11 | I9: 10 | L9: 8 | M9: 5 | N9: 9 | O9: 12 | Q9: 36 | R9: 37 | S9: 0 | T9: 0 | U9: 39 | V9: 42 | W9: 38 | X9: 35
H11: =COUNTA(H6:H10) -> 4 | I11: 4 | J11: 2 | K11: 2 | L11: 4 | M11: 4 | N11: 4 | O11: 4 | Q11: =COUNTA(Q6:Q10) -> 4 | R11: 4 | S11: 4 | T11: 4 | U11: 4 | V11: 4 | W11: 4 | X11: 4
A12: Total Events | D12: 4
A13: Track Point Races | D13: 4
A14: Avg. Entries | D14: =SUM(H11:O11)/4 -> 7

Sheet Young Lions
A1: 2016 RED WHITE and BLUE SERIES - CHAMPIONSHIP STANDINGS
A3: (After Round 8 of 8 - August 2, 2016) | H3: Weekly Finishes | Q3: Weekly Points
A4: YOUNG LIONS | D4: Races | E4: Total | F4: Points | G4: Average | H4: 2016-06-15 | I4: 2016-06-16 | J4: 2016-06-20 | K4: 2016-06-21 | L4: 2016-07-06 | M4: 2016-07-07 | N4: 2016-08-01 | O4: 2016-08-02 | P4: 00:00:00 | Q4: 2016-06-15 | R4: 2016-06-16 | S4: 2016-06-20 | T4: 2016-06-21 | U4: 2016-07-06 | V4: 2016-07-07 | W4: 2016-08-01 | X4: 2016-08-02
A5: Pos. | B5: Car # | C5: Driver | D5: Entered | E5: Points | F5: Back | G5: Finish
A6: 1 | B6: 43 | C6: Brody Pope | D6: =COUNTA(H6:O6) -> 8 | E6: =SUM(Q6:X6) -> 266 | F6: =E6-$E$6 -> 0 | G6: =AVERAGEA(H6:O6) -> 7.125 | H6: 11 | I6: 1 | J6: 4 | K6: 5 | L6: 11 | M6: 1 | N6: 22 | O6: 2 | Q6: 36 | R6: 50 | S6: 43 | T6: 42 | U6: 0 | V6: 50 | W6: 0 | X6: 45
A7: 2 | B7: 12 | C7: Sammy Smith | D7: =COUNTA(H7:O7) -> 8 | E7: =SUM(Q7:X7) -> 242 | F7: =E7-$E$6 -> -24 | G7: =AVERAGEA(H7:O7) -> 10.5 | H7: 3 | I7: 3 | J7: 14 | K7: 9 | L7: 7 | M7: 4 | N7: 20 | O7: 24 | Q7: 44 | R7: 44 | S7: 33 | T7: 38 | U7: 40 | V7: 43 | W7: 0 | X7: 0
A8: 3 | B8: 20RB | C8: Harrison Halder | D8: =COUNTA(H8:O8) -> 8 | E8: =SUM(Q8:X8) -> 233 | F8: =E8-$E$6 -> -33 | G8: =AVERAGEA(H8:O8) -> 10.375 | H8: 4 | I8: 10 | J8: 13 | K8: 21 | L8: 10 | M8: 3 | N8: 8 | O8: 14 | Q8: 43 | R8: 37 | S8: 0 | T8: 0 | U8: 37 | V8: 44 | W8: 39 | X8: 33
A9: 4 | B9: 22 | C9: Sam Mayer | D9: =COUNTA(H9:O9) -> 6 | E9: =SUM(Q9:X9) -> 217 | F9: =E9-$E$6 -> -49 | G9: =AVERAGEA(H9:O9) -> 10.83333333 | J9: 22 | K9: 8 | L9: 2 | M9: 5 | N9: 21 | O9: 7 | Q9: 0 | R9: 0 | S9: 25 | T9: 39 | U9: 45 | V9: 42 | W9: 26 | X9: 40
A10: 5 | B10: 15 | C10: Roy Hayes | D10: =COUNTA(H10:O10) -> 6 | E10: =SUM(Q10:X10) -> 217 | F10: =E10-$E$6 -> -49 | G10: =AVERAGEA(H10:O10) -> 10.83333333 | H10: 12 | I10: 11 | J10: 9 | K10: 17 | N10: 4 | O10: 12 | Q10: 35 | R10: 36 | S10: 38 | T10: 30 | U10: 0 | V10: 0 | W10: 43 | X10: 35
D11: =COUNTA(H11:O11) -> 0 | E11: =SUM(Q11:X11) -> 0 | F11: =E11-$E$6 -> -266 | G11: =AVERAGEA(H11:O11) -> 
H12: =COUNTA(H6:H11) -> 4 | I12: 4 | J12: 5 | K12: 5 | L12: 4 | M12: 4 | N12: 5 | O12: 5 | Q12: =COUNTA(Q6:Q11) -> 5 | R12: 5 | S12: 5 | T12: 5 | U12: 5 | V12: 5 | W12: 5 | X12: 5
A13: Total Events | D13: 4
A14: Track Point Races | D14: 4
A15: Avg. Entries | D15: =SUM(H12:O12)/4 -> 9

Sheet Semi-Pro
A1: 2016 RED WHITE and BLUE SERIES - CHAMPIONSHIP STANDINGS
A3: (After Round 8 of 8 - August 2, 2016) | H3: Weekly Finishes | Q3: Weekly Points
A4: SEMI PRO | D4: Races | E4: Total | F4: Points | G4: Average | H4: 2016-06-15 | I4: 2016-06-16 | J4: 2016-06-20 | K4: 2016-06-21 | L4: 2016-07-06 | M4: 2016-07-07 | N4: 2016-08-01 | O4: 2016-08-02 | P4: 00:00:00 | Q4: 2016-06-15 | R4: 2016-06-16 | S4: 2016-06-20 | T4: 2016-06-21 | U4: 2016-07-06 | V4: 2016-07-07 | W4: 2016-08-01 | X4: 2016-08-02
A5: Pos. | B5: Car # | C5: Driver | D5: Entered | E5: Points | F5: Back | G5: Finish
A6: 1 | B6: 34 | C6: Nolan Pope | D6: =COUNTA(H6:O6) -> 8 | E6: =SUM(Q6:X6) -> 260 | F6: =E6-$E$6 -> 0 | G6: =AVERAGEA(H6:O6) -> 7.625 | H6: 2 | I6: 1 | J6: 9 | K6: 17 | L6: 2 | M6: 2 | N6: 10 | O6: 18 | Q6: 45 | R6: 50 | S6: 38 | T6: 0 | U6: 45 | V6: 45 | W6: 37 | X6: 0
A7: =A6+1 -> 2 | B7: 17 | C7: Scott Joy | D7: =COUNTA(H7:O7) -> 6 | E7: =SUM(Q7:X7) -> 253 | F7: =E7-$E$6 -> -7 | G7: =AVERAGEA(H7:O7) -> 4.833333333 | J7: 5 | K7: 6 | L7: 4 | M7: 3 | N7: 6 | O7: 5 | S7: 42 | T7: 41 | U7: 43 | V7: 44 | W7: 41 | X7: 42
A8: 3 | B8: 9 | C8: Hudson Halder | D8: =COUNTA(H8:O8) -> 8 | E8: =SUM(Q8:X8) -> 246 | F8: =E8-$E$6 -> -14 | G8: =AVERAGEA(H8:O8) -> 8.875 | H8: 3 | I8: 3 | J8: 14 | K8: 10 | L8: 5 | M8: 6 | N8: 9 | O8: 21 | Q8: 44 | R8: 44 | S8: 0 | T8: 37 | U8: 42 | V8: 41 | W8: 38 | X8: 0
A9: 4 | B9: 12 | C9: Jessica Dana | D9: =COUNTA(H9:O9) -> 6 | E9: =SUM(Q9:X9) -> 219 | F9: =E9-$E$6 -> -41 | G9: =AVERAGEA(H9:O9) -> 10.5 | J9: 13 | K9: 15 | L9: 6 | M9: 7 | N9: 13 | O9: 9 | S9: 34 | T9: 32 | U9: 41 | V9: 40 | W9: 34 | X9: 38
D10: =COUNTA(H10:O10) -> 0 | E10: =SUM(Q10:X10) -> 0 | F10: =E10-$E$6 -> -260 | G10: =AVERAGEA(H10:O10) -> 
H11: =COUNTA(H6:H10) -> 2 | I11: 2 | J11: 4 | K11: 4 | L11: 4 | M11: 4 | N11: 4 | O11: 4 | Q11: =COUNTA(Q6:Q10) -> 2 | R11: =COUNTA(R6:R10) -> 2 | S11: =COUNTA(S7:S10) -> 3 | T11: =COUNTA(T6:T10) -> 4 | U11: =COUNTA(U6:U10) -> 4 | V11: =COUNTA(V6:V10) -> 4 | W11: =COUNTA(W6:W10) -> 4 | X11: =COUNTA(X6:X10) -> 4
A12: Total Events | D12: 4
A13: Track Point Races | D13: 4
A14: Total Purse Payout | D14: =SUM(#REF!) -> 
A15: Avg. Entries | D15: =SUM(H11:N11)/4 -> 6

Sheet Masters
A1: 2016 RED WHITE and BLUE SERIES - CHAMPIONSHIP STANDINGS
A3: (After Round 8 of 8 - August 2, 2016)
A4: MASTERS | H4: Weekly Finishes | Q4: Weekly Points
D5: Races | E5: Total | F5: Points | G5: Average | H5: 2016-06-15 | I5: 2016-06-16 | J5: 2016-06-20 | K5: 2016-06-21 | L5: 2016-07-06 | M5: 2016-07-07 | N5: 2016-08-01 | O5: 2016-08-02 | P5: 00:00:00 | Q5: 2016-06-15 | R5: 2016-06-16 | S5: 2016-06-20 | T5: 2016-06-21 | U5: 2016-07-06 | V5: 2016-07-07 | W5: 2016-08-01 | X5: 2016-08-02
A6: Pos. | B6: Car # | C6: Driver | D6: Entered | E6: Points | F6: Back | G6: Finish
A7: 1 | B7: 22 | C7: Scott Moseley | D7: =COUNTA(H7:O7) -> 6 | E7: =SUM(Q7:X7) -> 271 | F7: =E7-$E$7 -> 0 | G7: =AVERAGEA(H7:O7) -> 4.833333333 | H7: 1 | I7: 1 | L7: 1 | M7: 1 | N7: 22 | O7: 3 | Q7: 50 | R7: 50 | S7: 0 | T7: 0 | U7: 50 | V7: 50 | W7: 27 | X7: 44
A8: 2 | B8: 72W | C8: Robbie Woodall | D8: 6 | E8: 252 | F8: -19 | G8: 5.666666667 | H8: 5 | I8: 12 | L8: 2 | M8: 6 | N8: 1 | O8: 8 | Q8: 42 | R8: 35 | S8: 0 | T8: 0 | U8: 45 | V8: 41 | W8: 50 | X8: 39
D9: 0 | E9: 0 | F9: -271
H10: =COUNTA(H7:H9) -> 2 | I10: =COUNTA(I7:I9) -> 2 | J10: =COUNTA(J7:J9) -> 0 | K10: =COUNTA(K7:K9) -> 0 | L10: =+COUNTA(L7:L9) -> 2 | M10: =COUNTA(M7:M9) -> 2 | N10: =COUNTA(N7:N9) -> 2 | O10: =COUNTA(O7:O9) -> 2 | Q10: =COUNTA(Q7:Q9) -> 2 | R10: 2 | S10: 2 | T10: 2 | U10: 2 | V10: 2 | W10: 2 | X10: 2
A11: Total Events | D11: 4
A12: Track Point Races | D12: 4
A13: Total Purse Payout | D13: =SUM(#REF!) -> 
A14: Avg. Entries | D14: =SUM(H10:O10)/4 -> 3

Sheet Pro
A1: 2016 RED WHITE and BLUE SERIES - CHAMPIONSHIP STANDINGS
A3: (After Round 8 of 8 - August 2, 2016)
A4: PROS | H4: Weekly Finishes | Q4: Weekly Points
D5: Races | E5: Total | F5: Points | G5: Average | H5: 2016-06-15 | I5: 2016-06-16 | J5: 2016-06-20 | K5: 2016-06-21 | L5: 2016-07-06 | M5: 2016-07-07 | N5: 2016-08-01 | O5: 2016-08-02 | P5: 00:00:00 | Q5: 2016-06-14 | R5: 2016-06-16 | S5: 2016-06-20 | T5: 2016-06-21 | U5: 7/6//2016 | V5: 2016-07-07 | W5: 2016-08-01 | X5: 2016-08-02
A6: Pos. | B6: Car # | C6: Driver | D6: Entered | E6: Points | F6: Back | G6: Finish
A7: 1 | B7: 14 | C7: Jordan Black | D7: =COUNTA(H7:O7) -> 6 | E7: =SUM(Q7:X7) -> 259 | F7: =E7-$E$7 -> 0 | G7: =AVERAGEA(H7:O7) -> 5.833333333 | J7: 6 | K7: 1 | L7: 13 | M7: 13 | N7: 1 | O7: 1 | Q7: 0 | R7: 0 | S7: 41 | T7: 50 | U7: 34 | V7: 34 | W7: 50 | X7: 50
A8: 2 | B8: 34 | C8: Kaden Honeycutt | D8: =COUNTA(H8:O8) -> 6 | E8: =SUM(Q8:X8) -> 246 | F8: =E8-$E$7 -> -13 | G8: =AVERAGEA(H8:O8) -> 6.166666667 | H8: 2 | I8: 11 | L8: 6 | M8: 6 | N8: 7 | O8: 5 | Q8: 45 | R8: 36 | S8: 0 | T8: 0 | U8: 41 | V8: 41 | W8: 41 | X8: 42
A9: 32
H10: =COUNTA(H7:H9) -> 1 | I10: 1 | J10: 1 | K10: 1 | L10: 2 | M10: 2 | N10: 2 | O10: 2 | Q10: =COUNTA(Q7:Q9) -> 2 | R10: 2 | S10: 2 | T10: 2 | U10: 2 | V10: 2 | W10: 2 | X10: 2
A11: Total Events | D11: 4
A12: Track Point Races | D12: 4
A13: Total Purse Payout | D13: =SUM(#REF!) -> 
A14: Avg. Entries | D14: =SUM(H10:O10)/4 -> 3

Sheet Sheet1 (hidden)
